[Event "*** Titled Tuesday Blitz"]
[Site "Chess.com"]
[Date "2018.07.03"]
[Round "1"]
[White "olksuna"]
[Black "GM_dmitrij"]
[Result "0-1"]
[WhiteElo "2423"]
[BlackElo "2808"]
[TimeControl "180+2"]
[EndTime "13:09:24 PDT"]
[Termination "GM_dmitrij won on time"]

1. e4 {[%clk 0:02:59]} 1... e5 {[%clk 0:02:59.5]} 2. Nf3 {[%clk 0:02:59.9]} 2...
Nc6 {[%clk 0:02:56.7]} 3. c3 {[%clk 0:03:01.2]} 3... Nf6 {[%clk 0:02:54.7]} 4.
d3 {[%clk 0:02:59.1]} 4... d5 {[%clk 0:02:54.7]} 5. Nbd2 {[%clk 0:02:59.5]} 5...
Bc5 {[%clk 0:02:54.8]} 6. Be2 {[%clk 0:02:59.4]} 6... a5 {[%clk 0:02:55.4]} 7.
O-O {[%clk 0:03:00.1]} 7... O-O {[%clk 0:02:56]} 8. Qc2 {[%clk 0:03:01.2]} 8...
h6 {[%clk 0:02:55.9]} 9. h3 {[%clk 0:03:02.3]} 9... Be6 {[%clk 0:02:55.3]} 10.
Re1 {[%clk 0:03:03.1]} 10... d4 {[%clk 0:02:49.8]} 11. Nb3 {[%clk 0:02:56.8]}
11... Bb6 {[%clk 0:02:33]} 12. cxd4 {[%clk 0:02:56.5]} 12... Bxb3 {[%clk
0:02:18.2]} 13. Qxb3 {[%clk 0:02:46.8]} 13... Nxd4 {[%clk 0:02:18.9]} 14. Nxd4
{[%clk 0:02:43.7]} 14... Qxd4 {[%clk 0:02:20.8]} 15. Be3 {[%clk 0:02:42.7]}
15... Qb4 {[%clk 0:01:48]} 16. Qxb4 {[%clk 0:02:37.7]} 16... axb4 {[%clk
0:01:48.1]} 17. Bxb6 {[%clk 0:02:38.7]} 17... cxb6 {[%clk 0:01:49.1]} 18. Rec1
{[%clk 0:02:36.2]} 18... Rfc8 {[%clk 0:01:46.4]} 19. Kf1 {[%clk 0:02:25.5]}
19... Rxc1+ {[%clk 0:01:37.9]} 20. Rxc1 {[%clk 0:02:23.5]} 20... Rxa2 {[%clk
0:01:39.8]} 21. Rb1 {[%clk 0:02:13.7]} 21... Nd7 {[%clk 0:01:37.2]} 22. Ke1
{[%clk 0:02:02.9]} 22... Nc5 {[%clk 0:01:38]} 23. Kd2 {[%clk 0:01:51.9]} 23...
Nb3+ {[%clk 0:01:38.7]} 24. Ke3 {[%clk 0:01:49.6]} 24... g5 {[%clk 0:01:39.2]}
25. Bg4 {[%clk 0:01:45.8]} 25... Kf8 {[%clk 0:01:31.9]} 26. Bc8 {[%clk
0:01:45.7]} 26... Nc5 {[%clk 0:01:27.4]} 27. d4 {[%clk 0:01:43.5]} 27... exd4+
{[%clk 0:01:27.4]} 28. Kxd4 {[%clk 0:01:44.1]} 28... Ke7 {[%clk 0:01:28.7]} 29.
Kc4 {[%clk 0:01:40.4]} 29... b3 {[%clk 0:01:29.5]} 30. e5 {[%clk 0:01:36.3]}
30... Kd8 {[%clk 0:01:12.7]} 31. Bf5 {[%clk 0:01:32.3]} 31... Ra4+ {[%clk
0:01:13.4]} 32. Kb5 {[%clk 0:01:33]} 32... Rf4 {[%clk 0:01:09.9]} 33. g4 {[%clk
0:01:21.3]} 33... Rxf2 {[%clk 0:01:06.1]} 34. Kxb6 {[%clk 0:01:21.6]} 34... Na4+
{[%clk 0:01:01.7]} 35. Kxb7 {[%clk 0:01:22.2]} 35... Ke7 {[%clk 0:00:41.3]} 36.
Kc6 {[%clk 0:01:02.3]} 36... Rxb2 {[%clk 0:00:24.7]} 37. Rd1 {[%clk 0:01:02.6]}
37... Re2 {[%clk 0:00:24.2]} 38. Rd7+ {[%clk 0:00:52.7]} 38... Kf8 {[%clk
0:00:24.5]} 39. Ra7 {[%clk 0:00:41]} 39... Nc3 {[%clk 0:00:25.1]} 40. Ra3 {[%clk
0:00:38.3]} 40... Rxe5 {[%clk 0:00:18.5]} 41. Rxb3 {[%clk 0:00:30.3]} 41... Ne2
{[%clk 0:00:19.9]} 42. Kd6 {[%clk 0:00:23.4]} 42... Re8 {[%clk 0:00:19.6]} 43.
h4 {[%clk 0:00:19.2]} 43... Nd4 {[%clk 0:00:15.4]} 44. Rb4 {[%clk 0:00:12.7]}
44... Nxf5+ {[%clk 0:00:11.1]} 45. gxf5 {[%clk 0:00:10.9]} 45... Kg7 {[%clk
0:00:12.6]} 46. Kd7 {[%clk 0:00:11.8]} 46... Re5 {[%clk 0:00:13]} 47. hxg5
{[%clk 0:00:11.7]} 47... hxg5 {[%clk 0:00:14.8]} 48. Rb5 {[%clk 0:00:06.6]}
48... Rxb5 {[%clk 0:00:15.3]} 0-1

[Event "*** Titled Tuesday Blitz"]
[Site "Chess.com"]
[Date "2018.07.03"]
[Round "1"]
[White "BasilSmash"]
[Black "Polish_fighter3000"]
[Result "0-1"]
[WhiteElo "2414"]
[BlackElo "2769"]
[TimeControl "180+2"]
[EndTime "13:09:31 PDT"]
[Termination "Polish_fighter3000 won by resignation"]

1. d4 {[%clk 0:03:01.9]} 1... Nf6 {[%clk 0:03:00.5]} 2. Nf3 {[%clk 0:03:01.4]}
2... e6 {[%clk 0:03:02.4]} 3. Bf4 {[%clk 0:03:01.3]} 3... d5 {[%clk 0:03:02.1]}
4. e3 {[%clk 0:03:02.1]} 4... c5 {[%clk 0:03:03.2]} 5. c3 {[%clk 0:03:02.7]}
5... Nc6 {[%clk 0:03:04.6]} 6. Nbd2 {[%clk 0:03:02.7]} 6... Bd6 {[%clk
0:03:05.1]} 7. Bg3 {[%clk 0:03:03.7]} 7... O-O {[%clk 0:03:04.4]} 8. Bd3 {[%clk
0:03:04.2]} 8... b6 {[%clk 0:03:05.4]} 9. e4 {[%clk 0:03:04.6]} 9... Be7 {[%clk
0:03:04.1]} 10. e5 {[%clk 0:03:05.5]} 10... Nh5 {[%clk 0:03:04.8]} 11. Ng5
{[%clk 0:03:06.2]} 11... Bxg5 {[%clk 0:03:00.4]} 12. Qxh5 {[%clk 0:03:05.6]}
12... g6 {[%clk 0:02:59.2]} 13. Qe2 {[%clk 0:03:02.2]} 13... cxd4 {[%clk
0:02:59.5]} 14. Nf3 {[%clk 0:02:55.4]} 14... dxc3 {[%clk 0:02:59.5]} 15. bxc3
{[%clk 0:02:52.4]} 15... Be7 {[%clk 0:02:56.5]} 16. h4 {[%clk 0:02:49.1]} 16...
h5 {[%clk 0:02:56.8]} 17. Bf4 {[%clk 0:02:42.9]} 17... Kg7 {[%clk 0:02:57.1]}
18. g4 {[%clk 0:02:32.1]} 18... hxg4 {[%clk 0:02:50.8]} 19. Ng5 {[%clk
0:02:32.4]} 19... Rh8 {[%clk 0:02:48.4]} 20. Qxg4 {[%clk 0:02:31.7]} 20... Qg8
{[%clk 0:02:24.8]} 21. Kd2 {[%clk 0:02:14.1]} 21... Kf8 {[%clk 0:02:16]} 22.
Rag1 {[%clk 0:01:57]} 22... f5 {[%clk 0:01:45.5]} 23. Qe2 {[%clk 0:01:45.5]}
23... Rh5 {[%clk 0:01:43.4]} 24. Nf3 {[%clk 0:01:35]} 24... Bd7 {[%clk
0:01:41.5]} 25. Bg5 {[%clk 0:01:35.2]} 25... Rc8 {[%clk 0:01:41.4]} 26. Bxe7+
{[%clk 0:01:34.3]} 26... Kxe7 {[%clk 0:01:43.3]} 27. Rg5 {[%clk 0:01:34]} 27...
Qh7 {[%clk 0:01:41.7]} 28. Rg3 {[%clk 0:01:27.8]} 28... Be8 {[%clk 0:01:41.3]}
29. Rhg1 {[%clk 0:01:26.1]} 29... Na5 {[%clk 0:01:40.9]} 30. Qe3 {[%clk
0:01:16]} 30... Rc5 {[%clk 0:01:41.4]} 31. Rg5 {[%clk 0:01:10.1]} 31... Kd7
{[%clk 0:01:24.9]} 32. Rxh5 {[%clk 0:01:08.2]} 32... Qxh5 {[%clk 0:01:26.8]} 33.
Rg5 {[%clk 0:01:08.4]} 33... Qh6 {[%clk 0:01:27.7]} 34. Qf4 {[%clk 0:01:08.2]}
34... Qf8 {[%clk 0:01:14.8]} 35. Qg3 {[%clk 0:01:06.7]} 35... Nc4+ {[%clk
0:01:12.4]} 36. Bxc4 {[%clk 0:01:06.8]} 36... Rxc4 {[%clk 0:01:14.3]} 37. Nd4
{[%clk 0:00:54.4]} 37... Qa3 {[%clk 0:01:12.1]} 38. h5 {[%clk 0:00:54]} 38...
Qb2+ {[%clk 0:01:09]} 39. Nc2 {[%clk 0:00:53.8]} 39... gxh5 {[%clk 0:00:55.9]}
40. Rg7+ {[%clk 0:00:53.6]} 40... Kc6 {[%clk 0:00:54.8]} 41. Rxa7 {[%clk
0:00:48]} 41... f4 {[%clk 0:00:47.7]} 42. Qh3 {[%clk 0:00:41.2]} 42... Bd7
{[%clk 0:00:40.9]} 43. a4 {[%clk 0:00:28.6]} 43... h4 {[%clk 0:00:41.3]} 44. Qd3
{[%clk 0:00:25]} 44... Bc8 {[%clk 0:00:32.8]} 45. Kd1 {[%clk 0:00:20.5]} 45...
Qxc3 {[%clk 0:00:29.3]} 46. Qxc3 {[%clk 0:00:18.8]} 46... Rxc3 {[%clk
0:00:31.2]} 47. Kd2 {[%clk 0:00:13.9]} 47... Rc4 {[%clk 0:00:31.3]} 48. Kd3
{[%clk 0:00:13.9]} 48... Bb7 {[%clk 0:00:32]} 49. Nd4+ {[%clk 0:00:06.4]} 49...
Rxd4+ {[%clk 0:00:32.9]} 50. Kxd4 {[%clk 0:00:06.8]} 50... h3 {[%clk 0:00:34.8]}
51. a5 {[%clk 0:00:07.3]} 51... h2 {[%clk 0:00:34.8]} 52. a6 {[%clk 0:00:06.9]}
52... h1=Q {[%clk 0:00:36]} 53. axb7 {[%clk 0:00:07.9]} 53... Kc7 {[%clk
0:00:32.8]} 0-1

[Event "*** Titled Tuesday Blitz"]
[Site "Chess.com"]
[Date "2018.07.03"]
[Round "1"]
[White "pedromartinez91"]
[Black "penguingm1"]
[Result "0-1"]
[WhiteElo "2412"]
[BlackElo "2762"]
[TimeControl "180+2"]
[EndTime "13:09:32 PDT"]
[Termination "penguingm1 won by resignation"]

1. e4 {[%clk 0:03:01.2]} 1... e5 {[%clk 0:03:01]} 2. Nf3 {[%clk 0:02:53.8]} 2...
Nc6 {[%clk 0:03:02.4]} 3. Bb5 {[%clk 0:02:54.6]} 3... a6 {[%clk 0:03:03.6]} 4.
Ba4 {[%clk 0:02:55.2]} 4... Nf6 {[%clk 0:03:05]} 5. Bxc6 {[%clk 0:02:53.3]} 5...
dxc6 {[%clk 0:03:05.8]} 6. d3 {[%clk 0:02:54]} 6... Nd7 {[%clk 0:03:05]} 7. Nbd2
{[%clk 0:02:54.1]} 7... f6 {[%clk 0:03:06.1]} 8. Nh4 {[%clk 0:02:55.1]} 8... g6
{[%clk 0:02:54.6]} 9. O-O {[%clk 0:02:54.8]} 9... Bg7 {[%clk 0:02:49.1]} 10. Nc4
{[%clk 0:02:53.9]} 10... O-O {[%clk 0:02:49.8]} 11. Nf3 {[%clk 0:02:01.7]} 11...
Qe7 {[%clk 0:02:21.1]} 12. Bd2 {[%clk 0:02:00.1]} 12... Nc5 {[%clk 0:02:13.7]}
13. Bb4 {[%clk 0:01:48.5]} 13... Rd8 {[%clk 0:02:13.6]} 14. Qe2 {[%clk
0:01:47.1]} 14... b6 {[%clk 0:02:07.9]} 15. a4 {[%clk 0:01:46.6]} 15... a5
{[%clk 0:02:07.6]} 16. Ba3 {[%clk 0:01:47.6]} 16... Bf8 {[%clk 0:02:01.7]} 17.
b3 {[%clk 0:01:47.5]} 17... Qf7 {[%clk 0:01:51.3]} 18. Nfd2 {[%clk 0:01:45.6]}
18... Ne6 {[%clk 0:01:43.6]} 19. Bb2 {[%clk 0:01:46]} 19... Nf4 {[%clk
0:01:41.5]} 20. Qe1 {[%clk 0:01:36.5]} 20... g5 {[%clk 0:01:35.9]} 21. Ne3
{[%clk 0:01:31.3]} 21... Qh5 {[%clk 0:01:33.6]} 22. Ba3 {[%clk 0:01:27.5]} 22...
Bh6 {[%clk 0:01:27.7]} 23. f3 {[%clk 0:01:23.1]} 23... g4 {[%clk 0:01:23.8]} 24.
fxg4 {[%clk 0:01:14.1]} 24... Bxg4 {[%clk 0:01:22.5]} 25. Nf3 {[%clk 0:01:02.4]}
25... Rd7 {[%clk 0:01:10.6]} 26. Kh1 {[%clk 0:00:55.2]} 26... Rg7 {[%clk
0:00:36.1]} 27. Nxg4 {[%clk 0:00:56.2]} 27... Qxg4 {[%clk 0:00:36.5]} 28. g3
{[%clk 0:00:57.4]} 28... Qh3 {[%clk 0:00:36.7]} 29. Qf2 {[%clk 0:00:52.1]} 29...
Nh5 {[%clk 0:00:32.1]} 30. Rg1 {[%clk 0:00:51.9]} 30... Kh8 {[%clk 0:00:30.4]}
31. Nh4 {[%clk 0:00:50.4]} 31... Nxg3+ {[%clk 0:00:23.4]} 32. Rxg3 {[%clk
0:00:49.6]} 32... Qxh4 {[%clk 0:00:24.8]} 33. Rf3 {[%clk 0:00:38.6]} 33... Qh5
{[%clk 0:00:08.6]} 34. Rf5 {[%clk 0:00:31]} 34... Qh3 {[%clk 0:00:07.7]} 35. Bc1
{[%clk 0:00:21.6]} 35... Bxc1 {[%clk 0:00:06.2]} 36. Rxc1 {[%clk 0:00:22.3]}
36... Rag8 {[%clk 0:00:07.8]} 37. Rf3 {[%clk 0:00:20]} 37... Rg2 {[%clk
0:00:06]} 38. Rxh3 {[%clk 0:00:18.2]} 38... Rxf2 {[%clk 0:00:07.5]} 39. Rg3
{[%clk 0:00:11.8]} 39... Rxg3 {[%clk 0:00:08.6]} 40. hxg3 {[%clk 0:00:13.7]}
40... Kg7 {[%clk 0:00:10.2]} 41. Kg1 {[%clk 0:00:15]} 41... Rd2 {[%clk
0:00:11.4]} 42. Kf1 {[%clk 0:00:16.2]} 42... Kg6 {[%clk 0:00:12.7]} 43. Kg1
{[%clk 0:00:17.4]} 43... h5 {[%clk 0:00:13.7]} 44. c4 {[%clk 0:00:07]} 44... Kg5
{[%clk 0:00:13.7]} 45. c5 {[%clk 0:00:08.2]} 45... Kg4 {[%clk 0:00:10.6]} 46.
cxb6 {[%clk 0:00:09.5]} 46... cxb6 {[%clk 0:00:12.5]} 47. Rxc6 {[%clk
0:00:10.1]} 47... Kxg3 {[%clk 0:00:13.9]} 48. Kf1 {[%clk 0:00:11.4]} 48... h4
{[%clk 0:00:14.4]} 49. Rxf6 {[%clk 0:00:11.8]} 49... h3 {[%clk 0:00:15.8]} 50.
Rg6+ {[%clk 0:00:13]} 50... Kf3 {[%clk 0:00:16.9]} 51. Rf6+ {[%clk 0:00:13.3]}
51... Ke3 {[%clk 0:00:18.3]} 52. Rh6 {[%clk 0:00:11]} 52... h2 {[%clk
0:00:19.4]} 53. Ke1 {[%clk 0:00:11.3]} 53... Ra2 {[%clk 0:00:19.8]} 54. Rh3+
{[%clk 0:00:12.1]} 54... Kd4 {[%clk 0:00:21.2]} 55. Rxh2 {[%clk 0:00:09]} 55...
Rxh2 {[%clk 0:00:21.8]} 0-1

[Event "*** Titled Tuesday Blitz"]
[Site "Chess.com"]
[Date "2018.07.03"]
[Round "1"]
[White "murmah2003"]
[Black "Passacaglia23"]
[Result "1-0"]
[WhiteElo "2616"]
[BlackElo "2298"]
[TimeControl "180+2"]
[EndTime "13:09:34 PDT"]
[Termination "murmah2003 won by resignation"]

1. Nf3 {[%clk 0:03:01.9]} 1... d5 {[%clk 0:03:00.5]} 2. d4 {[%clk 0:03:02.7]}
2... Nf6 {[%clk 0:03:00.9]} 3. c4 {[%clk 0:03:04]} 3... c6 {[%clk 0:03:01.9]} 4.
Nc3 {[%clk 0:03:05]} 4... e6 {[%clk 0:03:03.4]} 5. Bg5 {[%clk 0:03:03.4]} 5...
Nbd7 {[%clk 0:03:03.9]} 6. e3 {[%clk 0:03:03.8]} 6... Qa5 {[%clk 0:03:05.2]} 7.
Bxf6 {[%clk 0:02:57.7]} 7... Nxf6 {[%clk 0:03:05.4]} 8. Nd2 {[%clk 0:02:54.7]}
8... Bb4 {[%clk 0:02:55.7]} 9. Qc2 {[%clk 0:02:51.4]} 9... c5 {[%clk 0:02:39.9]}
10. Nb3 {[%clk 0:02:34.8]} 10... Qc7 {[%clk 0:02:20.7]} 11. a3 {[%clk
0:02:08.6]} 11... Bxc3+ {[%clk 0:02:15.5]} 12. Qxc3 {[%clk 0:02:10.5]} 12...
cxd4 {[%clk 0:02:08.4]} 13. Nxd4 {[%clk 0:02:06]} 13... O-O {[%clk 0:01:50.9]}
14. Rc1 {[%clk 0:01:59.6]} 14... b6 {[%clk 0:01:38.9]} 15. cxd5 {[%clk
0:01:34.9]} 15... Qxc3+ {[%clk 0:01:38.1]} 16. Rxc3 {[%clk 0:01:36.8]} 16...
Nxd5 {[%clk 0:01:37]} 17. Rc2 {[%clk 0:01:30.3]} 17... Bb7 {[%clk 0:01:34.9]}
18. Bb5 {[%clk 0:01:21.8]} 18... Rac8 {[%clk 0:01:13]} 19. Bc6 {[%clk
0:00:58.7]} 19... Bxc6 {[%clk 0:00:45]} 20. Nxc6 {[%clk 0:01:00.6]} 20... f5
{[%clk 0:00:33.1]} 21. Ke2 {[%clk 0:00:46.3]} 21... Rf7 {[%clk 0:00:25.1]} 22.
Rhc1 {[%clk 0:00:30.9]} 22... Kf8 {[%clk 0:00:25.7]} 23. Nd4 {[%clk 0:00:26.2]}
23... Rxc2+ {[%clk 0:00:18.6]} 24. Rxc2 {[%clk 0:00:28.1]} 24... Ke7 {[%clk
0:00:17.8]} 25. Rc8 {[%clk 0:00:22]} 25... Kf6 {[%clk 0:00:15.7]} 26. f3 {[%clk
0:00:10.7]} 26... e5 {[%clk 0:00:14.2]} 27. Rc6+ {[%clk 0:00:10.4]} 27... Kg5
{[%clk 0:00:08.7]} 28. Ne6+ {[%clk 0:00:07.2]} 28... Kh5 {[%clk 0:00:08.3]} 29.
h3 {[%clk 0:00:06.8]} 29... Kh4 {[%clk 0:00:05.5]} 30. Kf2 {[%clk 0:00:07.3]}
30... Rd7 {[%clk 0:00:05.1]} 31. Rc8 {[%clk 0:00:05.3]} 31... Nf6 {[%clk
0:00:05.5]} 32. Rc7 {[%clk 0:00:04.1]} 32... Rd2+ {[%clk 0:00:04.7]} 33. Kg1
{[%clk 0:00:04.6]} 33... g6 {[%clk 0:00:04.1]} 34. Kf1 {[%clk 0:00:03]} 34...
Kg3 {[%clk 0:00:04.3]} 35. f4 {[%clk 0:00:03.8]} 35... Ne4 {[%clk 0:00:04.4]}
36. fxe5 {[%clk 0:00:04]} 36... Rxg2 {[%clk 0:00:04.9]} 37. Nf4 {[%clk
0:00:04.7]} 37... Rf2+ {[%clk 0:00:05.5]} 38. Ke1 {[%clk 0:00:06.1]} 38... Kf3
{[%clk 0:00:06.7]} 39. e6 {[%clk 0:00:06.1]} 39... Kxe3 {[%clk 0:00:06.2]} 40.
e7 {[%clk 0:00:06.7]} 40... Rh2 {[%clk 0:00:06.4]} 41. Nd5+ {[%clk 0:00:07.1]}
41... Kd3 {[%clk 0:00:06.2]} 42. Kf1 {[%clk 0:00:07]} 42... Nd6 {[%clk
0:00:02.6]} 43. Rd7 {[%clk 0:00:07.6]} 43... Ne8 {[%clk 0:00:02.5]} 44. Nf6+
{[%clk 0:00:08.7]} 44... Ke3 {[%clk 0:00:02.9]} 45. Nxe8 {[%clk 0:00:10.3]}
45... Kf3 {[%clk 0:00:04.5]} 46. Ke1 {[%clk 0:00:10.2]} 46... Ke3 {[%clk
0:00:05.5]} 47. Kd1 {[%clk 0:00:10.6]} 47... Rh1+ {[%clk 0:00:06.5]} 48. Kc2
{[%clk 0:00:11.6]} 48... Rh2+ {[%clk 0:00:07.9]} 49. Kb3 {[%clk 0:00:13.1]}
49... Rxh3 {[%clk 0:00:08.8]} 50. Nd6 {[%clk 0:00:14.1]} 50... Kf4+ {[%clk
0:00:09]} 51. Ka2 {[%clk 0:00:15.4]} 1-0

[Event "*** Titled Tuesday Blitz"]
[Site "Chess.com"]
[Date "2018.07.03"]
[Round "1"]
[White "Mimsychess"]
[Black "Kirill_Klukin"]
[Result "1-0"]
[WhiteElo "2297"]
[BlackElo "2586"]
[TimeControl "180+2"]
[EndTime "13:09:34 PDT"]
[Termination "Mimsychess won by resignation"]

1. e4 {[%clk 0:02:56.9]} 1... c5 {[%clk 0:02:56.5]} 2. Nf3 {[%clk 0:02:56.7]}
2... Nc6 {[%clk 0:02:57.9]} 3. d4 {[%clk 0:02:54.1]} 3... cxd4 {[%clk
0:02:58.9]} 4. Nxd4 {[%clk 0:02:55.6]} 4... e5 {[%clk 0:02:59.9]} 5. Nb5 {[%clk
0:02:55]} 5... d6 {[%clk 0:02:59.3]} 6. N1c3 {[%clk 0:02:55.8]} 6... a6 {[%clk
0:02:59.9]} 7. Na3 {[%clk 0:02:56.2]} 7... Be7 {[%clk 0:03:00.8]} 8. Nd5 {[%clk
0:02:45.5]} 8... Nf6 {[%clk 0:03:00.9]} 9. Nxf6+ {[%clk 0:02:33]} 9... Bxf6
{[%clk 0:03:00.6]} 10. Nc4 {[%clk 0:02:32.5]} 10... O-O {[%clk 0:03:01.6]} 11.
Be3 {[%clk 0:02:30.5]} 11... Be7 {[%clk 0:02:52.3]} 12. Be2 {[%clk 0:02:25.9]}
12... b5 {[%clk 0:02:53.1]} 13. Nb6 {[%clk 0:02:25.4]} 13... Rb8 {[%clk
0:02:53.6]} 14. Nd5 {[%clk 0:02:20.2]} 14... Be6 {[%clk 0:02:54]} 15. O-O {[%clk
0:02:19.9]} 15... Bg5 {[%clk 0:02:46.1]} 16. Bxg5 {[%clk 0:02:07.4]} 16... Qxg5
{[%clk 0:02:46.5]} 17. c3 {[%clk 0:02:03.4]} 17... Ne7 {[%clk 0:02:33.2]} 18. a4
{[%clk 0:01:51.4]} 18... Ng6 {[%clk 0:02:32.9]} 19. Kh1 {[%clk 0:01:46.6]} 19...
Bxd5 {[%clk 0:02:31.8]} 20. exd5 {[%clk 0:01:46.3]} 20... f5 {[%clk 0:02:31]}
21. axb5 {[%clk 0:01:44.6]} 21... axb5 {[%clk 0:02:29.6]} 22. g3 {[%clk
0:01:36.1]} 22... e4 {[%clk 0:02:24.4]} 23. Qd4 {[%clk 0:01:30.9]} 23... Rbe8
{[%clk 0:02:15.6]} 24. Ra7 {[%clk 0:01:26.4]} 24... Re5 {[%clk 0:02:16.6]} 25.
f4 {[%clk 0:01:16.8]} 25... exf3 {[%clk 0:02:16.1]} 26. Bxf3 {[%clk 0:01:17.9]}
26... f4 {[%clk 0:02:14.8]} 27. gxf4 {[%clk 0:01:02.8]} 27... Nxf4 {[%clk
0:02:11.7]} 28. Rg1 {[%clk 0:00:58.2]} 28... Qf6 {[%clk 0:02:12.4]} 29. Qxf4
{[%clk 0:00:54.2]} 29... Rf5 {[%clk 0:01:48.4]} 30. Rgxg7+ {[%clk 0:00:43.9]}
30... Qxg7 {[%clk 0:01:49.5]} 31. Rxg7+ {[%clk 0:00:44.1]} 31... Kxg7 {[%clk
0:01:51.4]} 32. Qg3+ {[%clk 0:00:44]} 32... Kh8 {[%clk 0:01:52.3]} 33. Be4
{[%clk 0:00:39.4]} 33... Re5 {[%clk 0:01:51.8]} 34. Qh4 {[%clk 0:00:34]} 34...
h5 {[%clk 0:01:47.1]} 35. b3 {[%clk 0:00:27]} 35... Kg7 {[%clk 0:01:47.1]} 36.
Qg3+ {[%clk 0:00:24.7]} 36... Kf7 {[%clk 0:01:42.1]} 37. Qg6+ {[%clk 0:00:24.3]}
37... Ke7 {[%clk 0:01:43.5]} 38. c4 {[%clk 0:00:19.9]} 38... bxc4 {[%clk
0:01:44.1]} 39. bxc4 {[%clk 0:00:20.7]} 39... Rf6 {[%clk 0:01:45.7]} 40. Qg7+
{[%clk 0:00:21.3]} 40... Rf7 {[%clk 0:01:47.1]} 41. Qg2 {[%clk 0:00:20.4]} 41...
Rf4 {[%clk 0:01:46.8]} 42. Qg7+ {[%clk 0:00:20.6]} 42... Rf7 {[%clk 0:01:47.8]}
43. Qg6 {[%clk 0:00:21.6]} 43... Rf6 {[%clk 0:01:48.8]} 44. Qh7+ {[%clk
0:00:19.5]} 44... Rf7 {[%clk 0:01:49.7]} 45. Qg6 {[%clk 0:00:13.7]} 45... Rf6
{[%clk 0:01:42.4]} 46. Qg8 {[%clk 0:00:14.7]} 46... Rf8 {[%clk 0:01:35.2]} 47.
Qg2 {[%clk 0:00:06.8]} 47... Rf4 {[%clk 0:01:35.3]} 48. Qg7+ {[%clk 0:00:02.9]}
48... Kd8 {[%clk 0:01:29]} 49. Qh8+ {[%clk 0:00:02.8]} 49... Kc7 {[%clk
0:01:27.9]} 50. Qg7+ {[%clk 0:00:03.8]} 50... Kb6 {[%clk 0:01:28.9]} 51. Bg6
{[%clk 0:00:04.1]} 51... Rg5 {[%clk 0:01:22.9]} 52. Qb2+ {[%clk 0:00:04.4]}
52... Kc7 {[%clk 0:01:23.9]} 53. Bd3 {[%clk 0:00:04.3]} 53... Rfg4 {[%clk
0:01:18.6]} 54. Qf2 {[%clk 0:00:03.5]} 54... h4 {[%clk 0:01:17.6]} 55. h3 {[%clk
0:00:04.6]} 55... Rg3 {[%clk 0:01:18.8]} 56. Qf7+ {[%clk 0:00:05.6]} 56... Kb6
{[%clk 0:01:19.3]} 57. Qf2+ {[%clk 0:00:04.4]} 57... Kc7 {[%clk 0:01:19.2]} 58.
Bf1 {[%clk 0:00:06.3]} 58... Rg7 {[%clk 0:01:18.6]} 59. Qa7+ {[%clk 0:00:07.1]}
59... Kd8 {[%clk 0:01:20]} 60. Qb8+ {[%clk 0:00:08]} 60... Kd7 {[%clk
0:01:20.8]} 61. Qb7+ {[%clk 0:00:08.4]} 61... Ke8 {[%clk 0:01:22.2]} 62. Qc8+
{[%clk 0:00:09.2]} 62... Kf7 {[%clk 0:01:21.9]} 63. Qd7+ {[%clk 0:00:10.1]}
63... Kg8 {[%clk 0:01:21.7]} 64. Qe8+ {[%clk 0:00:11]} 64... Kh7 {[%clk
0:01:21.1]} 65. Bd3+ {[%clk 0:00:12.9]} 65... Kh6 {[%clk 0:01:21.8]} 66. Qh8+
{[%clk 0:00:13.1]} 66... Kg5 {[%clk 0:01:23.2]} 67. Qxg7+ {[%clk 0:00:14.5]}
67... Kf4 {[%clk 0:01:25.1]} 68. Qd4+ {[%clk 0:00:15.2]} 68... Kg5 {[%clk
0:01:26]} 69. Bf1 {[%clk 0:00:15.1]} 69... Kg6 {[%clk 0:01:26.1]} 70. Qe4+
{[%clk 0:00:15.9]} 70... Kg5 {[%clk 0:01:26.9]} 71. Qe7+ {[%clk 0:00:16.8]}
71... Kf4 {[%clk 0:01:28.3]} 72. Qxh4+ {[%clk 0:00:17.2]} 72... Kf3 {[%clk
0:01:28.5]} 73. Be2+ {[%clk 0:00:18.4]} 73... Kf2 {[%clk 0:01:29.8]} 74. Qf4+
{[%clk 0:00:19.4]} 74... Ke1 {[%clk 0:01:31]} 75. Qxg3+ {[%clk 0:00:20.4]} 1-0